[Event "85th Tata Steel Masters 2023"]
[White "Maghsoodloo,Parham"]
[Black "Erigaisi Arjun"]
[Site "Wijk aan Zee"]
[Round "12.7"]
[Annotator "TA"]
[Result "1-0"]
[Date "2023.01.28"]
[WhiteElo "2719"]
[BlackElo "2722"]
[PlyCount "93"]
[TimeControl "60"]

{[%evp 18,93,0,0,14,0,13,23,17,14,17,0,13,25,24,0,3,0,0,7,7,0,0,0,0,0,0,0,0,0,0,0,18,19,16,16,23,22,19,17,81,0,39,41,327,304,258,38,38,28,33,38,32,38,518,478,29942,29942,29944,29946,29945,29946,29947,29948,29943,29947,29948,29952,29950,29948,12722,12351,29948,29952,29948,29954,5602,4577]} 1. d4 {[%emt 0:0:2]} Nf6 {[%emt 0:1:19]} 2. c4 {[%emt 0:1:7]} g6 {[%emt 0:0:6]} 3. Nc3 {[%emt 0:0:28]} d5 {[%emt 0:0:6]} 4. Nf3 {[%emt 0:1:28]} Bg7 {[%emt 0:0:6]} 5. h3 {[%emt 0:0:55]} O-O {[%emt 0:0:32]} 6. cxd5 {[%emt 0:0:8]} Nxd5 {[%emt 0:0:7]} 7. e4 {[%emt 0:0:4]} Nxc3 {[%emt 0:0:6]} 8. bxc3 {[%emt 0:0:8]} c5 {[%emt 0:0:5]} 9. Be2 {[%emt 0:1:11]} Nc6 {[%emt 0:0:50]} 10. Be3 {[%emt 0:0:17]} (10. dxc5 Bxc3+ 11. Bd2 Bxa1 12. Qxa1 Re8 $17 )cxd4 {[%emt 0:0:8] D85: Exchange Grünfeld: Unusual White 7th moves and lines with 7 Nf3.} 11. cxd4 {[%emt 0:0:3]} Qa5+ {[%emt 0:0:5]} (11... f5 $5 {[%cal Rf5e4]} )12. Bd2 {[%emt 0:0:6]} Qa3 {[%emt 0:0:5] [#] White has an edge.} 13. d5 {[%emt 0:0:5]} Ne5 {[%emt 0:0:6]} 14. O-O {[%emt 0:0:24]} Bd7 {[%emt 0:0:13]} 15. Rb1 {[%emt 0:0:8]} Ba4 {[%emt 0:1:12]} 16. Qe1 {[%emt 0:0:8]} (16. Qc1 $5 {[%cal Rc1a3]} Qxa2 17. Nxe5 (17. Rxb7 Rac8 $14 )Bxe5 18. Bc4 $11 (18. Rxb7 Rfc8 $11 ))Nd3 {[%emt 0:0:47]} 17. Bxd3 {[%emt 0:0:6]} Qxd3 {[%emt 0:0:5]} 18. Bg5 {[%emt 0:0:6]} Rfe8 {[%emt 0:15:10] [#]} 19. Qb4 $146 {[%emt 0:0:39]} ({Predecessor:} 19. Rxb7 Bb5 20. Bxe7 Qxf1+ 21. Qxf1 Bxf1 22. Kxf1 Rab8 23. Rxa7 Bf8 24. Bxf8 Kxf8 25. Ng5 {½-½ Sevian,S (2684)-Vachier Lagrave,M (2757) Chess.com Rapid CGC KO 2022 (2.4)} )b5 {[%emt 0:14:33]} (19... Bc2 20. Ne1 Qxe4 21. Nxc2 Qxc2 22. Bxe7 $16 )20. Rbc1 {[%emt 0:0:8]} a5 {[%emt 0:5:47]} 21. Qc5 {[%emt 0:0:8]} Qxe4 {[%emt 0:7:18]} 22. Rfe1 {[%emt 0:0:55]} Qf5 {[%emt 0:1:45] White must now prevent ...Bb2.} 23. g4 $1 {[%emt 0:0:22]} (23. Rxe7 Rec8 24. Ra7 Bf8 25. Rxa8 Bxc5 26. Rxc8+ Qxc8 $15 )Qc8 {[%emt 0:14:7]} (23... Qxf3 24. Re3 Rac8 25. Qxc8 $16 (25. Rxf3 Rxc5 26. Rxc5 Be5 $16 )(25. Rxf3 Rxc5 26. Rxc5 Bd4 $16 ))24. Bxe7 {[%emt 0:26:5]} b4 {[%emt 0:5:19]} 25. Qe3 {[%emt 0:14:1]} Qb7 {[%emt 0:2:25]} 26. d6 {[%emt 0:0:48]} Rac8 {[%emt 0:8:21] Wards off Rc7} 27. Ng5 {[%emt 0:14:47]} Rxc1 {[%emt 0:13:6]} 28. Rxc1 {[%emt 0:0:32]} Qd5 {[%emt 0:0:30] [#]} (28... Rc8 $1 $11 {remains equal.} )29. Qf4 {[%emt 0:31:34]} ({Better is} 29. Rc7 $1 $16 )Qxa2 {[%emt 0:5:50] aiming for ...h6.} (29... h6 $5 {[%cal Rh6g5]} 30. Ne4 Be5 $11 )30. Rc4 $1 {[%emt 0:0:50]} f5 {[%emt 0:0:38][%mdl 8192]} 31. gxf5 $18 {[%emt 0:1:7]} h6 {[%emt 0:3:51] [#]} 32. f6 $2 {[%emt 0:4:35]} (32. Kg2 $1 $18 {[%cal Yf5g6] Threatens to win with fxg6!} hxg5 33. Qe4 gxf5 34. Qd5+ Kh8 35. Rh4+ {[%mdl 64] Discovered Attack} gxh4 36. Qxa2 )hxg5 $14 {[%emt 0:0:42]} (32... Qb1+ $2 33. Rc1 hxg5 34. Qc4+ (34. Rxb1 $2 gxf4 35. fxg7 Kxg7 $19 )Kh7 35. Rxb1 $18 )33. f7+ {[%emt 0:0:6]} Kh7 {[%emt 0:0:4]} 34. fxe8=Q {[%emt 0:4:58][%cal Yf4h4] Qh4+! would kill now.} gxf4 {[%emt 0:4:12]} 35. Qf7 $40 {[%emt 0:0:15][%mdl 128] Threatening mate with Bf6. White is up to no good. The board is on fire.} Be8 $2 {[%emt 0:3:53][%mdl 8192]} 36. Qxf4 $18 {[%emt 0:5:23] Qh4+ would be deadly.} b3 {[%emt 0:0:36] [#]} (36... Qa1+ $18 37. Rc1 Qe5 38. Qxe5 Bxe5 )37. d7 $1 {[%emt 0:0:54][%mdl 64] Deflection} Bxd7 {[%emt 0:0:10]} 38. Qf7 {[%emt 0:0:10][%cal Rc4h4]} Qa1+ {[%emt 0:2:4]} 39. Kg2 {[%emt 0:0:47][%cal Rc4h4]} Bxh3+ {[%emt 0:0:11]} 40. Kh2 $1 {[%emt 0:1:14][%cal Rc4h4]} ({Not} 40. Kxh3 Qh1+ 41. Kg3 Qg1+ 42. Kh3 (42. Kf3 Qh1+ 43. Kg3 Qg1+ 44. Kh3 Qh1+ 45. Kg3 $11 )Qh1+ 43. Kg3 Qg1+ 44. Kh3 (44. Kf3 Qh1+ 45. Kg3 $11 )Qh1+ $11 )Qe5+ {[%emt 0:2:4]} 41. Kxh3 {[%emt 0:50:7]} Qf5+ {[%emt 0:50:33]} 42. Qxf5 {[%emt 0:0:8]} gxf5 {[%emt 0:0:5]} 43. Rc7 {[%emt 0:3:19]} Kg6 {[%emt 0:0:45]} 44. Ba3 {[%emt 0:0:34] White threatens Rb7 and mate.} Be5 {[%emt 0:0:30]} 45. Rc5 {[%emt 0:0:31][%csl Ya5,Ye5]} Bd4 {[%emt 0:0:10]} 46. Rxa5 {[%emt 0:0:7]} Bxf2 {[%emt 0:0:7]} 47. Rb5 {[%emt 0:0:5] Artfully played by Maghsoodloo.   Weighted Error Value: White=0.08 (flawless) /Black=0.54} 1-0